bitfinex/quotes_ETHUSD_20250529
["timestamp","ask_amount","ask_price","bid_price","bid_amount"]
[1748545777339,4.53722611,2646.3,2645.4,10.0]
[1748545777638,0.7583,2646.1,2645.2,1.192]
[1748545777837,0.7583,2645.9,2644.9,0.7955]
[1748545778042,0.45375895,2645.8,2644.9,2.69928349]
[1748545778241,0.7583,2645.7,2644.9,1.90378349]
[1748545778440,4.12,2645.6,2644.9,1.90378349]
[1748545778638,4.12,2645.6,2644.6,0.7955]
[1748545778939,4.53832764,2645.5,2644.5,1.90378349]
[1748545779166,0.86583276,2645.4,2644.3,0.7955]
[1748545779379,0.86583276,2645.4,2644.6,1.90378349]
[1748545779581,4.119,2645.3,2644.6,1.90378349]
[1748545779969,4.119,2645.3,2644.8,2.22586]
[1748545780295,4.119,2645.3,2644.6,1.90378349]
[1748545780595,0.8083,2645.2,2644.3,0.7955]
[1748545780754,0.8083,2645.2,2644.6,1.90378349]
[1748545781297,3.78066136,2645.1,2644.0,2.67278349]
[1748545781456,0.7612,2645.0,2644.1,3.292446]
[1748545781828,0.7612,2645.0,2643.4,0.8081]
[1748545781971,1.64773,2645.1,2643.4,0.8081]
[1748545781972,0.7537,2644.4,2643.5,6.768478]
[1748545782166,4.118,2644.3,2643.6,1.90378349]
[1748545782415,0.3563726,2645.7,2644.2,0.8081]
[1748545782614,0.3563726,2645.7,2645.4,1.90378349]
[1748545782908,1.155,2647.1,2645.0,0.55]
[1748545782909,4.145,2646.0,2645.0,0.55]
[1748545783110,0.7537,2645.9,2645.4,1.90378349]
[1748545783304,4.144,2646.0,2645.6,1.90378349]
[1748545784117,4.144,2646.4,2645.7,10.1581]
[1748545784283,4.143,2646.4,2645.7,10.1581]
[1748545785518,4.143,2646.4,2645.4,0.8081]
[1748545785807,0.7537,2646.5,2645.4,3.188647]
[1748545786015,4.141,2646.3,2645.4,3.188647]
[1748545786213,0.4141,2646.2,2645.4,3.188647]
[1748545786373,4.139,2646.1,2645.8,5.289184]
[1748545786571,4.139,2646.1,2645.8,3.45736292]
[1748545787007,4.137,2646.2,2645.7,2.65478349]
[1748545787210,4.137,2646.3,2645.8,20.1681]
[1748545787390,4.137,2646.3,2645.8,10.1681]
[1748545787981,0.7537,2646.5,2645.8,10.1681]
[1748545788198,4.135,2646.4,2645.8,10.1681]
[1748545789388,4.135,2646.4,2645.8,3.107577]
[1748545789625,4.62387,2646.4,2645.8,3.107577]
[1748545789782,4.62387,2646.4,2645.8,2.014577]
[1748545789983,4.62387,2646.4,2645.7,0.751]
[1748545792397,4.135,2646.4,2645.7,0.751]
[1748545792602,4.135,2646.4,2645.8,15.308857]
[1748545792911,0.7537,2646.5,2645.8,15.308857]
[1748545793108,4.12,2646.4,2646.0,1.90378349]
[1748545793935,4.12,2646.4,2645.4,0.55]
[1748545794143,0.48737,2646.3,2645.5,1.90378349]
[1748545794428,0.48737,2646.3,2645.7,10.0]
[1748545794589,0.48737,2646.3,2645.6,7.591333]
[1748545794785,0.48737,2646.3,2645.7,10.0]
[1748545794986,0.48737,2646.3,2645.6,7.591333]
[1748545795223,0.48737,2646.3,2645.5,1.90378349]
[1748545795392,0.48737,2646.3,2645.6,3.578736]
[1748545795786,0.48737,2646.3,2645.6,2.656313]
[1748545796024,0.48737,2646.3,2645.5,2.14916184]
[1748545796797,0.48737,2646.3,2645.6,22.462417]
[1748545797123,0.48737,2646.3,2645.7,10.0]
[1748545797328,4.12,2646.4,2645.5,2.14916184]
[1748545797329,0.460737,2646.2,2645.5,2.14916184]
[1748545797689,0.7844,2646.1,2645.5,1.90378349]
[1748545799623,0.7844,2646.1,2645.0,1.155]
[1748545799827,0.8235,2646.0,2645.0,1.90378349]
[1748545800386,0.8235,2646.0,2645.1,5.769227]
[1748545800585,0.8235,2646.0,2645.1,5.43264]
[1748545800784,1.32982464,2646.0,2645.4,1.90378349]
[1748545800996,4.102,2645.9,2645.4,1.90378349]
[1748545801400,4.1,2645.8,2645.4,1.90378349]
[1748545801636,0.8235,2646.0,2645.4,1.90378349]
[1748545801928,4.1,2645.8,2644.9,10.8035]
[1748545802095,0.7719,2645.7,2644.9,0.8035]
[1748545802440,0.48719,2645.6,2644.9,5.409915]
[1748545802643,0.48719,2645.6,2644.8,1.90378349]
[1748545802986,0.48719,2645.6,2644.9,7.028004]
[1748545803193,0.7719,2645.7,2645.3,1.90378349]
[1748545803490,4.8719,2645.7,2645.3,1.90378349]
[1748545803731,4.099,2645.8,2645.3,1.90378349]
[1748545804029,1.155,2646.7,2645.7,1.90378349]
[1748545804030,0.7806,2646.6,2645.7,1.90378349]
[1748545804230,4.098,2646.5,2645.7,1.90378349]
[1748545804386,0.7806,2646.6,2645.7,1.90378349]
[1748545804387,0.48786,2646.4,2645.7,1.90378349]
[1748545804589,4.098,2646.3,2645.7,1.90378349]
[1748545805114,3.8606,2646.6,2646.1,1.90378349]
[1748545805319,3.8606,2646.6,2645.8,0.817]
[1748545805636,0.34936546,2647.5,2645.8,0.817]
[1748545805637,0.70683196,2647.5,2646.4,1.90378349]
[1748545805942,0.7708,2647.8,2647.2,1.90378349]
[1748545806526,4.8758,2647.8,2647.2,1.90378349]
[1748545806728,0.48758,2647.7,2647.2,1.90378349]
[1748545807513,0.7796,2647.3,2646.8,1.90378349]
[1748545807714,4.55704051,2647.3,2646.4,3.05878349]
[1748545808316,0.7796,2647.3,2646.4,3.05878349]
[1748545808844,4.101,2647.2,2646.4,3.05878349]
[1748545809003,3.77809566,2646.9,2645.8,10.0]
[1748545809210,0.7796,2647.0,2646.0,1.90378349]
[1748545809405,4.1,2646.9,2646.4,1.90378349]
[1748545811642,4.095,2646.8,2646.4,1.90378349]
[1748545811897,7.87321551,2646.8,2646.0,1.90378349]
[1748545812149,3.77845086,2646.6,2645.6,2.68868349]
[1748545812441,1.59542155,2646.7,2645.8,5.041175]
[1748545812646,1.59542155,2646.7,2645.8,10.0]
[1748545812800,1.59542155,2646.7,2645.8,5.141175]
[1748545813186,0.8081,2646.7,2646.3,1.90378349]
[1748545814200,4.093,2646.8,2646.3,1.90378349]
[1748545814645,0.8081,2647.0,2646.3,1.90378349]
[1748545814966,7.86708471,2646.9,2646.3,1.90378349]
[1748545815109,4.089,2646.9,2646.0,1.90378349]
[1748545815307,4.26794782,2646.8,2646.0,1.90378349]
[1748545815650,0.8081,2646.7,2645.7,0.7544]
[1748545815807,4.58645696,2646.7,2645.7,0.7544]
[1748545816004,3.7784841,2646.6,2645.7,0.7544]
[1748545816352,0.48971,2646.8,2645.6,1.90378349]
[1748545816353,3.77898096,2646.3,2645.6,1.90378349]
[1748545816560,8.32574891,2646.2,2645.6,1.90378349]
[1748545816852,4.5467081,2646.2,2645.6,1.90378349]
[1748545817503,0.8081,2646.4,2645.2,0.55]
[1748545817730,4.086,2646.3,2645.8,1.90378349]
[1748545818819,4.086,2646.3,2645.4,1.90378349]
[1748545820548,0.8081,2646.4,2645.8,1.90378349]
[1748545820720,4.079,2646.3,2645.8,1.90378349]
[1748545820920,4.079,2646.3,2645.7,4.378027]
[1748545821129,4.079,2646.3,2646.0,1.90378349]
[1748545821434,4.078,2646.4,2646.0,1.90378349]
[1748545821813,0.7796,2646.7,2646.0,1.90378349]
[1748545822009,4.077,2646.6,2646.0,1.90378349]
[1748545822247,4.077,2646.6,2645.8,0.62818105]
[1748545822563,0.814,2646.5,2645.3,0.7568]
[1748545822755,3.77906791,2646.2,2645.3,0.7568]
[1748545823054,0.814,2646.1,2645.2,1.90378349]
[1748545823348,4.59355367,2645.9,2644.8,3.04578349]
[1748545823519,4.077,2645.8,2645.2,1.90378349]
[1748545823724,0.4891,2645.7,2645.2,1.90378349]
[1748545825366,4.887,2645.9,2645.3,0.804]
[1748545825512,0.8287,2646.2,2645.6,1.90378349]
[1748545825708,4.073,2645.9,2645.6,1.90378349]
[1748545826120,4.073,2645.9,2645.2,1.90378349]
[1748545826319,4.073,2645.9,2645.0,0.8215]
[1748545826320,4.85821715,2645.9,2645.0,0.8215]
[1748545826505,0.8031,2645.8,2645.0,0.8215]
[1748545827138,4.072,2645.7,2645.3,1.90378349]
[1748545828260,4.069,2645.7,2645.3,1.90378349]
[1748545829124,4.066,2645.8,2645.3,1.90378349]
[1748545829851,4.4726,2645.8,2645.0,10.8215]
[1748545830162,4.4726,2645.8,2645.1,2.864462]
[1748545830372,4.4726,2645.8,2645.3,1.90378349]
[1748545830864,4.4726,2645.8,2645.1,1.90378349]
[1748545831465,4.4726,2645.8,2645.2,2.061308]
[1748545832122,4.061,2645.7,2645.1,1.90378349]
[1748545832467,0.7648,2645.6,2645.1,1.90378349]
[1748545834666,3.08,2645.5,2644.7,1.90378349]
[1748545834873,6.8600348,2645.5,2644.7,1.90378349]
[1748545835163,6.8600348,2645.5,2644.8,31.23296]
[1748545835164,3.08,2645.5,2644.8,31.23296]
[1748545835354,4.055,2645.4,2645.1,1.90378349]
[1748545835553,4.055,2645.3,2645.1,1.90378349]
[1748545835763,3.08,2645.5,2645.1,1.90378349]
[1748545835941,4.055,2645.4,2644.9,2.72748349]
[1748545836673,0.7852,2645.2,2644.1,0.514]
[1748545836859,8.97719268,2645.4,2644.0,1.03024922]
[1748545836860,3.78094041,2644.9,2644.0,1.03024922]
[1748545837168,1.16329404,2644.8,2644.0,1.03024922]
[1748545837332,4.061,2644.7,2644.0,0.26604922]
[1748545837532,7.84221314,2644.7,2644.0,0.26604922]
[1748545838068,4.061,2644.7,2644.0,0.26604922]
[1748545838238,4.94430676,2644.8,2644.0,0.26604922]
[1748545838239,1.16329404,2644.8,2644.0,0.26604922]
[1748545838452,3.78033734,2645.3,2644.6,1.90378349]
[1748545838453,0.7852,2645.3,2644.6,1.90378349]
[1748545838768,0.7852,2645.3,2644.2,2.66798349]
[1748545838769,4.061,2645.2,2644.2,2.66798349]
[1748545838930,3.78058763,2645.1,2644.2,0.7642]
[1748545839354,3.78076539,2645.0,2644.0,2.16983271]
[1748545839562,0.7852,2645.1,2644.0,2.16983271]
[1748545839768,0.86266457,2645.0,2644.5,1.90378349]
[1748545839931,4.061,2645.0,2644.6,0.7642]
[1748545840134,4.063,2645.0,2644.3,0.7642]
[1748545840336,4.063,2645.0,2644.5,1.90378349]
[1748545841075,4.063,2645.0,2644.0,5.97739969]
[1748545841076,4.56615634,2644.9,2644.0,2.93403271]
[1748545841372,0.86291563,2644.8,2644.0,2.93403271]
[1748545841536,3.78128485,2644.7,2644.0,1.90378349]
[1748545841847,4.6439938,2644.8,2644.0,1.90378349]
[1748545842043,4.6439938,2644.8,2643.8,6.44200554]
[1748545842260,4.6439938,2644.8,2643.3,0.514]
[1748545842261,0.7605,2643.4,2643.3,0.514]
[1748545842462,4.8355,2643.4,2643.3,0.514]
[1748545842789,4.075,2643.4,2643.3,0.514]
[1748545843086,4.075,2643.4,2643.2,0.49082576]
[1748545843462,0.7605,2643.8,2643.2,0.49082576]
[1748545843463,0.7605,2643.8,2643.2,5.02858238]
[1748545843652,4.074,2643.4,2643.2,5.02858238]
[1748545843847,4.074,2643.4,2643.0,0.7546]
[1748545844051,4.074,2643.4,2643.0,2.66119695]
[1748545844288,4.4814,2643.4,2642.7,1.90659695]
[1748545845206,0.7605,2643.3,2642.7,1.90659695]
[1748545846161,4.072,2643.3,2642.5,0.7546]
[1748545846362,0.7605,2643.2,2642.4,0.005]
[1748545847105,3.78344229,2643.1,2641.7,10.7546]
[1748545847280,0.7953,2642.9,2641.7,0.7546]
[1748545848003,4.079,2642.8,2641.7,0.7546]
[1748545848318,4.079,2642.8,2641.2,0.514]
[1748545848319,4.084,2642.7,2641.5,1.90659695]
[1748545848460,4.084,2642.7,2641.1,11.121]
[1748545848788,4.084,2642.7,2641.5,1.90659695]
[1748545848990,0.86631898,2642.6,2641.5,0.1906597]
[1748545849174,0.86631898,2642.6,2641.5,1.90659695]
[1748545849677,0.7953,2642.8,2641.3,0.55]
[1748545849678,0.7953,2642.8,2642.0,2.965349]
[1748545849874,4.085,2642.7,2642.0,2.965349]
[1748545850209,4.085,2642.7,2642.0,3.534466]
[1748545850353,4.085,2642.7,2641.9,1.90659695]
[1748545850554,4.085,2642.7,2641.7,10.0]
[1748545850789,0.48803,2642.6,2641.7,1.90659695]
[1748545851196,4.091,2642.5,2641.7,1.90659695]
[1748545851368,4.091,2642.5,2641.8,13.699085]
[1748545851568,4.091,2642.5,2641.9,10.0]
[1748545851771,0.7953,2642.8,2642.1,1.90659695]
[1748545852089,0.8052,2643.2,2642.5,2.68669695]
[1748545852268,4.8952,2643.2,2642.5,2.68669695]
[1748545852472,0.7836,2643.1,2641.9,1.90659695]
[1748545852672,0.7836,2643.1,2642.0,0.7801]
[1748545852909,0.7836,2643.1,2641.9,1.90659695]
[1748545853211,0.7961,2642.6,2641.7,0.7781]
[1748545853570,0.7961,2642.6,2641.5,1.90659695]
[1748545854085,0.7518,2642.5,2641.3,10.0]
[1748545854288,4.094,2642.4,2641.5,10.0]
[1748545854533,0.7518,2642.5,2641.6,10.0]
[1748545854716,4.097,2642.3,2641.5,1.90659695]
[1748545855025,4.099,2642.3,2641.7,7.812672]
[1748545855239,0.7518,2642.5,2641.6,0.811]
[1748545855373,4.099,2642.4,2641.7,1.90659695]
[1748545855570,4.58408,2642.4,2641.7,1.90659695]
[1748545856602,4.58408,2642.4,2641.4,1.90659695]
[1748545856818,8.36854156,2642.4,2641.4,1.90659695]
[1748545857014,0.8136,2642.3,2641.0,1.8827]
[1748545857188,4.32450452,2642.2,2641.0,0.7607]
[1748545857387,4.59857982,2642.1,2641.0,0.7607]
[1748545857725,3.78509636,2642.0,2641.0,0.7607]
[1748545857926,0.8136,2642.1,2641.0,0.7607]
[1748545858138,0.7952,2641.8,2640.8,1.90659695]
[1748545858361,1.3452,2641.6,2640.1,10.0]
[1748545858558,0.7952,2641.3,2640.1,6.60093295]
[1748545858842,0.7952,2641.3,2640.5,1.90659695]
[1748545858993,4.117,2641.2,2640.5,1.90659695]
[1748545859392,4.117,2641.2,2640.1,5.967723]
[1748545859393,4.117,2641.2,2640.1,7.270408]
[1748545859608,4.117,2641.2,2640.4,1.90659695]
[1748545860044,0.7608,2642.1,2640.8,1.90659695]
[1748545860204,7.90701203,2642.0,2640.9,2.11262]
[1748545860401,4.122,2642.0,2640.9,4.573]
[1748545860718,4.98777304,2641.9,2640.9,0.6479597]
[1748545861036,4.98777304,2641.9,2640.9,2.23]
[1748545861253,4.98777304,2641.9,2640.9,2.306788]
[1748545861763,0.86677304,2641.9,2640.9,2.0384]
[1748545861902,4.118,2641.8,2641.0,0.811]
[1748545862105,0.8171,2641.7,2640.8,1.90659695]
[1748545862511,0.8171,2641.7,2640.7,0.811]
[1748545863106,3.78559029,2641.6,2640.6,1.90659695]
[1748545863423,0.7744,2641.6,2640.6,1.90659695]
[1748545863623,0.45599385,2641.5,2640.6,1.90659695]
[1748545864071,0.7744,2641.3,2639.6,0.8049]
[1748545864363,3.78645208,2641.0,2639.9,18.280632]
[1748545864571,0.55,2641.4,2640.0,5.803935]
[1748545864572,4.49664521,2640.9,2640.0,5.803935]
[1748545864714,0.7744,2640.8,2640.0,5.803935]
[1748545865022,0.7744,2640.8,2639.8,2.17306946]
[1748545865221,0.7744,2640.8,2640.2,1.90659695]
[1748545865421,4.8904,2640.8,2640.2,1.90659695]
[1748545865735,5.37944,2640.8,2640.2,1.90659695]
[1748545865918,5.37944,2640.8,2639.8,2.17306946]
[1748545866362,9.16622849,2640.8,2639.8,0.26647251]
[1748545866524,0.7753,2640.7,2639.8,0.26647251]
[1748545866856,0.7753,2640.7,2639.8,2.17306946]
[1748545867170,0.35311458,2641.4,2639.9,0.21730695]
[1748545867171,0.7664,2641.4,2639.9,0.21730695]
[1748545867308,0.31460332,2641.3,2640.2,1.90659695]
[1748545867515,0.31460332,2641.3,2640.0,0.55]
[1748545867516,0.31460332,2641.3,2640.6,1.90659695]
[1748545868152,0.31460332,2641.3,2640.7,6.231924]
[1748545868315,0.31460332,2641.3,2640.6,1.90659695]
[1748545868523,0.31460332,2641.3,2640.7,0.30285969]
[1748545868969,0.31460332,2641.3,2641.0,2.69359695]
[1748545869258,0.7664,2642.1,2641.5,1.90659695]
[1748545869410,0.7664,2642.1,2641.3,1.90659695]
[1748545869611,0.7664,2642.1,2641.4,4.710187]
[1748545869828,0.7664,2642.1,2641.5,1.90659695]
[1748545870162,0.8071,2641.9,2640.5,2.71559695]
[1748545870328,4.115,2641.8,2640.5,2.71559695]
[1748545870527,0.49221,2641.7,2640.9,1.90659695]
[1748545870972,4.115,2641.6,2640.9,1.90659695]
[1748545871459,4.115,2641.6,2640.5,0.809]
[1748545871657,4.115,2641.6,2640.8,3.603723]
[1748545871853,4.115,2641.6,2640.7,1.90659695]
[1748545872353,4.115,2641.6,2640.8,9.012639]
[1748545872551,0.49221,2641.7,2640.8,9.32874874]
[1748545872856,4.11,2641.8,2641.1,1.90659695]
[1748545873217,4.11,2641.8,2641.2,0.31606186]
[1748545873416,0.8071,2641.9,2641.2,0.31606186]
[1748545873719,4.9181,2641.9,2641.2,0.31606186]
[1748545873915,4.9181,2641.9,2641.2,0.61518774]
[1748545874171,4.11,2641.9,2641.2,0.61518774]
[1748545874369,4.11,2641.9,2641.2,0.29912588]
[1748545874521,4.11,2641.9,2641.1,0.7686]
[1748545875130,4.108,2641.9,2641.2,14.27366]
[1748545875341,4.108,2641.9,2641.1,0.7686]
[1748545875662,4.108,2641.9,2641.2,2.8291]
[1748545875864,4.108,2641.9,2641.1,0.7686]
[1748545876064,4.5188,2641.9,2641.1,0.7686]
[1748545876271,4.5188,2641.9,2640.1,4.106]
[1748545876272,3.78594636,2641.4,2640.4,1.2839]
[1748545876440,3.78594636,2641.4,2640.4,0.7699]
[1748545876441,0.791,2641.3,2640.4,0.7699]
[1748545876774,0.791,2641.3,2640.3,3.486754]
[1748545876928,0.791,2641.3,2640.4,0.5393351]
[1748545877153,4.57704305,2641.3,2640.2,1.90659695]
[1748545877353,4.57704305,2641.3,2640.0,3.337144]
[1748545877354,3.78636662,2641.1,2640.0,3.337144]
[1748545877660,4.112,2641.0,2640.0,3.337144]
[1748545877849,4.112,2641.0,2639.9,0.7699]
[1748545878051,4.112,2641.0,2640.2,1.90659695]
[1748545878390,4.112,2641.0,2640.2,3.70076105]
[1748545878699,4.112,2641.0,2640.2,1.90659695]
[1748545879414,0.791,2641.3,2640.6,1.90659695]
[1748545879692,0.791,2641.3,2640.3,24.494699]
[1748545879693,0.791,2641.3,2640.3,19.540484]
[1748545879898,0.791,2641.3,2640.5,10.0]
[1748545880099,0.791,2641.3,2640.1,10.0]
[1748545880305,0.49,2641.2,2640.3,27.2552]
[1748545880599,0.49,2641.2,2640.3,11.4301]
[1748545881102,4.109,2641.4,2640.8,1.90659695]
[1748545881418,0.8178,2641.7,2640.8,1.90659695]
[1748545881627,0.8178,2641.7,2640.9,12.04264]
[1748545881923,0.8178,2641.7,2641.0,0.8321]
[1748545882206,0.8178,2641.7,2641.1,4.680649]
[1748545882405,0.8178,2641.7,2640.9,0.8321]
[1748545882619,1.31038,2641.7,2640.9,0.8321]
[1748545882768,4.108,2641.9,2641.1,10.0]
[1748545883101,0.8178,2642.0,2641.3,10.0]
[1748545883302,0.8178,2642.0,2641.3,13.784056]
[1748545883629,0.8117,2642.5,2641.3,13.784056]
[1748545883764,0.8117,2642.5,2641.6,2.67789695]
[1748545883765,4.46573381,2642.4,2641.6,2.67789695]
[1748545883963,0.52774338,2642.4,2641.6,2.94568665]
[1748545884218,0.8117,2642.5,2641.7,32.070167]
[1748545884425,4.107,2642.5,2641.7,9.102338]
[1748545884565,0.8117,2642.8,2641.7,9.102338]
[1748545884773,4.107,2642.7,2641.7,9.102338]
[1748545885009,4.107,2642.7,2642.1,2.470122]
[1748545885206,0.8117,2642.8,2642.1,2.470122]
[1748545885207,4.9187,2642.8,2642.1,2.086591]
[1748545885423,0.8305,2643.2,2642.2,0.8303]
[1748545885573,0.35669315,2643.1,2642.4,1.90659695]
[1748545885770,4.105,2643.0,2642.4,1.90659695]
[1748545886514,0.8305,2643.2,2642.4,1.90659695]
[1748545886724,4.105,2643.1,2642.4,1.90659695]
[1748545886902,0.49355,2643.0,2642.4,1.90659695]
[1748545887315,0.8305,2643.2,2642.4,1.90659695]
[1748545887633,4.9335,2643.2,2642.4,1.90659695]
[1748545887933,4.9335,2643.2,2642.2,0.8303]
[1748545887934,3.78350952,2643.1,2642.2,0.8303]
[1748545888150,4.9335,2643.2,2642.2,0.8303]
[1748545888303,0.8305,2643.2,2642.4,1.90659695]
[1748545888492,0.8305,2643.2,2642.5,39.906499]
[1748545888692,4.101,2643.1,2642.5,16.363181]
[1748545888933,3.08,2643.9,2642.8,1.90659695]
[1748545889146,3.08,2644.4,2643.3,1.90659695]
[1748545889294,4.104,2644.3,2643.3,1.90659695]
[1748545889491,0.7184,2644.2,2643.3,1.90659695]
[1748545890093,0.7184,2644.2,2643.5,19.509563]
[1748545890292,4.102,2644.3,2643.5,17.336283]
[1748545890997,4.70217726,2644.7,2643.6,0.7906]
[1748545891199,4.101,2644.6,2643.7,1.90659695]
[1748545891403,3.78166733,2644.4,2643.7,1.90659695]
[1748545891708,0.92100948,2644.7,2643.7,1.90659695]
[1748545891909,4.097,2644.6,2643.8,10.317415]
[1748545892122,3.78103727,2644.8,2643.8,10.317415]
[1748545892339,0.8017,2644.9,2644.1,1.90659695]
[1748545892340,4.097,2644.7,2644.1,1.90659695]
[1748545892539,4.097,2644.6,2644.1,1.90659695]
[1748545892751,1.901,2645.4,2644.2,0.7994]
[1748545892953,4.5951,2645.2,2644.2,0.7994]
[1748545893115,8.37554772,2645.2,2644.2,0.7994]
[1748545893323,0.4981,2645.2,2644.2,0.7994]
[1748545893543,4.095,2645.1,2644.2,0.7994]
[1748545893745,4.093,2645.0,2644.3,11.218573]
[1748545894051,0.4093,2644.9,2644.2,0.7994]
[1748545894257,0.4093,2644.9,2644.3,11.782973]
[1748545894428,0.4093,2644.9,2644.2,0.7994]
[1748545894629,0.4093,2644.9,2644.3,14.890201]
[1748545894821,0.45023,2644.8,2644.3,13.031201]
[1748545895251,1.901,2645.4,2644.5,1.90659695]
[1748545895252,4.093,2645.0,2644.5,1.90659695]
[1748545896741,3.08,2645.3,2644.5,1.90659695]
[1748545896942,4.09,2645.0,2644.5,1.90659695]
[1748545897334,4.09,2645.0,2644.6,16.266025]
[1748545897520,3.08,2645.3,2644.6,14.421405]
[1748545897843,4.5851,2645.2,2644.6,14.421405]
[1748545898047,3.08,2645.6,2644.9,2.72909695]
[1748545898249,7.9791,2645.8,2644.9,2.72909695]
[1748545898837,4.085,2645.7,2644.9,2.72909695]
[1748545899524,4.084,2645.6,2645.0,4.947985]
[1748545899947,0.8131,2645.8,2645.0,4.947985]
[1748545899948,4.082,2645.5,2645.0,4.947985]
[1748545900345,4.4902,2645.5,2644.5,0.7836]
[1748545900541,0.7724,2645.4,2644.1,0.7836]
[1748545900784,3.78081316,2645.0,2644.1,0.7836]
[1748545900950,3.78091174,2644.9,2644.1,0.7836]
[1748545901155,4.8429,2644.8,2644.1,0.7836]
[1748545901381,0.86238117,2644.7,2644.1,0.7836]
[1748545902446,4.085,2644.8,2644.1,0.7836]
[1748545902447,4.081,2644.8,2644.4,1.90659695]
[1748545902649,4.083,2645.0,2644.5,16.304671]
[1748545902844,4.083,2645.0,2644.5,9.23047084]
[1748545903056,4.082,2645.2,2644.5,9.23047084]
[1748545903273,4.082,2645.2,2644.5,4.515773]
[1748545903507,0.4082,2645.5,2644.6,0.7976]
[1748545903771,4.081,2645.4,2644.6,0.7976]
[1748545905181,3.78036516,2645.3,2644.6,0.7976]
[1748545905385,3.78045407,2645.2,2644.6,0.7976]
[1748545905596,4.53851851,2645.1,2644.2,0.7976]
[1748545905792,0.7579,2645.1,2644.4,10.0]
[1748545905947,0.45382777,2645.1,2644.5,22.511706]
[1748545906144,0.7952,2646.9,2645.5,1.77486729]
[1748545906346,0.7952,2646.9,2645.6,3.152245]
[1748545906543,4.111,2647.1,2645.2,10.8153]
[1748545906544,0.7952,2646.7,2645.4,1.90659695]
[1748545907329,3.77901093,2646.2,2645.4,1.90659695]
[1748545907457,1.132,2646.9,2645.2,0.8153]
[1748545907458,4.48990109,2646.1,2645.2,0.8153]
[1748545907665,4.112,2646.0,2645.2,0.8153]
[1748545908264,0.37790109,2646.1,2645.3,22.463595]
[1748545908461,4.111,2645.9,2645.3,19.572615]
[1748545909002,4.111,2645.9,2645.3,13.704]
[1748545909211,4.111,2645.9,2645.4,10.0]
[1748545909347,4.111,2645.9,2645.2,0.8153]
[1748545909551,4.111,2645.9,2645.3,3.410949]
[1748545910056,4.108,2646.1,2645.3,0.4226249]
[1748545910394,4.108,2646.1,2645.4,1.90659695]
[1748545911665,4.108,2646.1,2645.2,0.8153]
[1748545911666,3.77929511,2646.0,2645.2,0.8153]
[1748545911978,4.108,2646.1,2645.2,0.8153]
[1748545912160,7.88715945,2646.1,2645.2,0.8153]
[1748545912776,4.108,2646.1,2645.2,0.8153]
[1748545912979,3.77979467,2645.7,2644.9,0.7587]
[1748545913491,0.7794,2645.4,2644.6,0.7587]
[1748545913654,4.102,2645.3,2644.6,0.7587]
[1748545913849,7.88232638,2645.3,2644.6,0.7587]
[1748545914055,3.78054771,2645.2,2644.6,0.7587]
[1748545914252,0.78825477,2645.1,2644.6,0.7587]
[1748545914857,4.102,2645.3,2644.6,0.7587]
[1748545915594,4.102,2645.3,2644.2,0.7659]
[1748545915796,4.55956526,2645.4,2644.4,1.90659695]
[1748545916009,0.7794,2645.4,2644.5,10.295]
[1748545916211,4.1,2645.3,2644.4,1.90659695]
[1748545916354,0.86596169,2645.2,2644.4,1.90659695]
[1748545916754,0.86596169,2645.2,2644.5,1.90659695]
[1748545917991,4.64648269,2645.2,2644.5,1.90659695]
[1748545918626,0.7794,2645.4,2645.1,1.90659695]
[1748545918789,0.99834828,2646.0,2645.1,1.90659695]
[1748545918790,0.7501,2645.9,2645.1,1.90659695]
[1748545918992,3.77993143,2645.6,2645.1,1.90659695]
[1748545919215,3.77993261,2645.6,2645.1,1.90659695]
[1748545919485,4.099,2645.5,2645.1,1.90659695]
[1748545919826,0.78789326,2645.4,2645.1,1.90659695]
[1748545920487,4.52960072,2645.9,2645.1,1.90659695]
[1748545920488,0.7501,2645.9,2645.1,1.90659695]
[1748545920691,4.45173351,2645.8,2645.1,1.90659695]
[1748545920887,0.35673351,2645.7,2645.1,1.90659695]
[1748545921100,7.8746644,2645.8,2644.9,1.90659695]
[1748545921323,4.13654563,2645.7,2644.9,1.90659695]
[1748545921529,4.095,2645.8,2644.9,1.90659695]
[1748545921530,0.82315456,2645.6,2644.9,1.90659695]
[1748545922021,4.60312302,2645.6,2644.9,1.90659695]
[1748545922207,0.82315456,2645.6,2644.9,1.90659695]
[1748545924093,7.87459617,2645.8,2644.9,1.90659695]
[1748545924464,0.8145,2645.4,2644.0,0.0948]
[1748545924754,0.35714605,2645.7,2643.9,0.514]
[1748545924755,0.8145,2644.5,2643.9,0.514]
[1748545924899,4.099,2644.4,2644.1,0.0948]
[1748545925294,4.5089,2644.4,2643.6,0.0948]
[1748545927342,0.7976,2643.6,2642.2,2.00639695]
[1748545927514,3.78366859,2643.0,2642.3,0.31593029]
[1748545927714,0.7976,2643.3,2642.3,0.31593029]
[1748545927715,0.7976,2643.3,2642.5,1.90659695]
[1748545927942,4.13,2643.2,2642.6,0.31589442]
[1748545928099,0.7976,2643.3,2642.6,0.31589442]
[1748545928100,4.131,2643.1,2642.6,10.31589442]
[1748545928312,4.131,2643.2,2642.9,1.90659695]
[1748545928615,4.131,2643.2,2643.0,0.31584661]
[1748545929003,4.131,2643.2,2642.9,1.90659695]
[1748545929404,7.91431276,2643.2,2642.9,1.90659695]
[1748545929606,4.131,2643.2,2642.9,1.90659695]
[1748545930220,4.92241641,2643.2,2642.9,1.90659695]
[1748545931206,4.131,2643.2,2642.9,1.90659695]
[1748545932237,0.7976,2643.6,2642.9,1.90659695]
[1748545932446,0.7976,2643.6,2643.3,1.90659695]
[1748545932755,0.4099,2644.4,2643.4,10.0]